Workbook

Sheet 道闸
A1: 城市 | B1: 媒体名称 | C1: 频次 | D1: 发布总量(面) | E1: 最短购买周期(周) | F1: 刊例价(元) | G1: 刊例价单位 | H1: 折扣 | I1: 媒体总净价(元) | J1: 首次制作安装费(元/次/面) | K1: 总制作费(元) | L1: 总净价(元) | M1: 总净价单位 | N1: 成本单价 | O1: 成本媒体费总价 | P1: 供应商 | Q1: 单日覆盖人流量/人次 | R1: 总曝光/人次 | S1: SOV | T1: CPM(元) | U1: 对应比稿 | V1: 备注
A2: 佛山 | B2: 道闸 | C2: 固定 | D2: 30 | E2: 4 | F2: 11,800 | G2: 元/面/4周 | H2: 22.50% | I2: =F2*H2*D2 -> 79650 | J2: 0 | K2: =J2*D2 -> 0 | L2: =K2+I2 -> 79650 | M2: 元/4周 | N2: 968 | O2: =N2*D2 -> 29040 | P2: 壹媒介 | Q2: =5000*D2 -> 150,000 | R2: =Q2*28 -> 4,200,000 | S2: =D2/4000 -> 0.75% | T2: =L2/R2*1000 -> 18.96 | U2: 非比稿 | V2: 1、4周起做，固定周六上刊 2、此价格为单面报价，按照AB面各50%选点(A面为车头及沿街面、B面为社区面)
A3: 武汉 | B3: 道闸 | C3: 固定 | D3: 30 | E3: 4 | F3: 11,800 | G3: 元/面/4周 | H3: 22.50% | I3: =F3*H3*D3 -> 79650 | J3: 0 | K3: =J3*D3 -> 0 | L3: =K3+I3 -> 79650 | M3: 元/4周 | N3: 968 | O3: =N3*D3 -> 29040 | P3: 壹媒介 | Q3: =7000*D3 -> 210,000 | R3: =Q3*28 -> 5,880,000 | S3: =D3/5000 -> 0.60% | T3: =L3/R3*1000 -> 13.55 | U3: 非比稿 | V3: 1、4周起做，固定周六上刊 2、此价格为单面报价，按照AB面各50%选点(A面为车头及沿街面、B面为社区面)
A4: 成都 | B4: 道闸 | C4: 固定 | D4: 30 | E4: 2 | F4: 7,800 | G4: 元/面/2周 | H4: 22.50% | I4: =F4*H4*D4 -> 52650 | J4: 0 | K4: =J4*D4 -> 0 | L4: =K4+I4 -> 52650 | M4: 元/2周 | P4: 壹媒界 | Q4: =7000*D4 -> 210,000 | R4: =Q4*14 -> 2,940,000 | S4: =D4/2269 -> 1.32% | T4: =L4/R4*1000 -> 17.91 | U4: 非比稿 | V4: 1、2周起做，固定周六上刊 2、此价格为单面报价，按照AB面各50%选点(A面为车头及沿街面、B面为社区面)
